[Event "Live Chess"]
[Site "Chess.com"]
[Date "2023.05.21"]
[Round "-"]
[White "Rusty_Bridges"]
[Black "raminguy"]
[Result "0-1"]
[WhiteElo "1512"]
[BlackElo "1956"]
[TimeControl "300"]
[EndTime "2:55:04 PDT"]
[Termination "raminguy won by resignation"]

1. e4 {[%clk 0:04:54.1]} 1... e5 {[%clk 0:04:59.1]} 2. f4 {[%clk 0:04:52.6]}
2... exf4 {[%clk 0:04:58]} 3. Nf3 {[%clk 0:04:51.4]} 3... g5 {[%clk 0:04:57.4]}
4. Bc4 {[%clk 0:04:50.4]} 4... Bg7 {[%clk 0:04:56.9]} 5. d4 {[%clk 0:04:48.4]}
5... h6 {[%clk 0:04:56]} 6. h4 {[%clk 0:04:45.2]} 6... Nc6 {[%clk 0:04:50.5]} 7.
c3 {[%clk 0:04:43.3]} 7... d6 {[%clk 0:04:48.8]} 8. hxg5 {[%clk 0:04:37]} 8...
hxg5 {[%clk 0:04:46.9]} 9. Rxh8 {[%clk 0:04:36.8]} 9... Bxh8 {[%clk 0:04:46.5]}
10. Na3 {[%clk 0:04:28.3]} 10... Bg4 {[%clk 0:04:44.6]} 11. Bd2 {[%clk
0:04:26.2]} 11... Qe7 {[%clk 0:04:36.6]} 12. Qe2 {[%clk 0:04:24.7]} 12... O-O-O
{[%clk 0:04:28]} 13. O-O-O {[%clk 0:04:22.3]} 13... Nf6 {[%clk 0:04:13.2]} 14.
Bd3 {[%clk 0:04:17.9]} 14... Re8 {[%clk 0:03:54.3]} 15. Re1 {[%clk 0:04:11.3]}
15... Bg7 {[%clk 0:03:40.6]} 16. Qf2 {[%clk 0:04:05.2]} 16... Bxf3 {[%clk
0:03:39.1]} 17. gxf3 {[%clk 0:04:02.1]} 17... Nd7 {[%clk 0:03:35.9]} 18. d5
{[%clk 0:04:00]} 18... Nce5 {[%clk 0:03:34.3]} 19. Bb5 {[%clk 0:03:45.1]} 19...
Kb8 {[%clk 0:03:24.8]} 20. Kb1 {[%clk 0:03:38.6]} 20... a6 {[%clk 0:03:18.4]}
21. Bf1 {[%clk 0:03:34.7]} 21... Rh8 {[%clk 0:02:57.7]} 22. Nc4 {[%clk
0:03:30.2]} 22... Bf6 {[%clk 0:02:48.4]} 23. Na5 {[%clk 0:03:22]} 23... g4
{[%clk 0:02:42.8]} 24. Bxf4 {[%clk 0:03:11.1]} 24... Nxf3 {[%clk 0:02:37.4]} 25.
Rc1 {[%clk 0:02:57.1]} 25... Qxe4+ {[%clk 0:02:29.6]} 26. Ka1 {[%clk 0:02:50.6]}
26... Qxf4 {[%clk 0:02:28]} 0-1

[Event "Live Chess"]
[Site "Chess.com"]
[Date "2023.05.21"]
[Round "-"]
[White "Cimon"]
[Black "Pandreq"]
[Result "1-0"]
[WhiteElo "1834"]
[BlackElo "1234"]
[TimeControl "300"]
[EndTime "2:55:19 PDT"]
[Termination "Cimon won by checkmate"]

1. Nf3 {[%clk 0:04:53.9]} 1... d5 {[%clk 0:04:56.4]} 2. d4 {[%clk 0:04:52.7]}
2... Nc6 {[%clk 0:04:54.7]} 3. Bf4 {[%clk 0:04:50.7]} 3... Nf6 {[%clk
0:04:52.7]} 4. c3 {[%clk 0:04:49.2]} 4... Bf5 {[%clk 0:04:51.1]} 5. h3 {[%clk
0:04:47.6]} 5... e6 {[%clk 0:04:50]} 6. e3 {[%clk 0:04:46.4]} 6... Bd6 {[%clk
0:04:47.5]} 7. Bg5 {[%clk 0:04:41.8]} 7... h6 {[%clk 0:04:44.7]} 8. Bh4 {[%clk
0:04:40.3]} 8... g5 {[%clk 0:04:36.9]} 9. Bg3 {[%clk 0:04:38.4]} 9... Bxg3
{[%clk 0:04:35.8]} 10. fxg3 {[%clk 0:04:37.3]} 10... Ne4 {[%clk 0:04:30.5]} 11.
g4 {[%clk 0:04:33.2]} 11... Bg6 {[%clk 0:04:20.4]} 12. Nbd2 {[%clk 0:04:20.7]}
12... Qf6 {[%clk 0:04:07.3]} 13. Nxe4 {[%clk 0:04:17]} 13... Bxe4 {[%clk
0:04:07.2]} 14. Be2 {[%clk 0:04:13.8]} 14... O-O-O {[%clk 0:04:02.9]} 15. Qa4
{[%clk 0:03:57.2]} 15... Kb8 {[%clk 0:03:56]} 16. b4 {[%clk 0:03:51.7]} 16...
Rd6 {[%clk 0:03:46.7]} 17. b5 {[%clk 0:03:45.6]} 17... Ne7 {[%clk 0:03:41.1]}
18. O-O-O {[%clk 0:03:37.4]} 18... c6 {[%clk 0:03:30]} 19. Rhf1 {[%clk
0:03:30.4]} 19... Qg7 {[%clk 0:03:21.7]} 20. Ne5 {[%clk 0:03:21.9]} 20... Rc8
{[%clk 0:03:10.5]} 21. Rxf7 {[%clk 0:03:18.1]} 21... Qg8 {[%clk 0:02:55.9]} 22.
Rxe7 {[%clk 0:03:10.7]} 22... cxb5 {[%clk 0:02:40]} 23. Qxb5 {[%clk 0:02:56.3]}
23... Rc7 {[%clk 0:02:29]} 24. Rxc7 {[%clk 0:02:49.9]} 24... Kxc7 {[%clk
0:02:24.7]} 25. Qc5+ {[%clk 0:02:48]} 25... Rc6 {[%clk 0:02:15.1]} 26. Nxc6
{[%clk 0:02:39.1]} 26... bxc6 {[%clk 0:02:15]} 27. Qxa7+ {[%clk 0:02:37.9]}
27... Kd6 {[%clk 0:02:14.4]} 28. Kd2 {[%clk 0:02:29.6]} 28... Bxg2 {[%clk
0:02:08.4]} 29. Qc5+ {[%clk 0:02:25.1]} 29... Kd7 {[%clk 0:02:06.8]} 30. Rb1
{[%clk 0:02:23.2]} 30... Qa8 {[%clk 0:01:58.7]} 31. a4 {[%clk 0:02:13.9]} 31...
Be4 {[%clk 0:01:43]} 32. Rb6 {[%clk 0:02:08]} 32... Qc8 {[%clk 0:01:18.8]} 33.
a5 {[%clk 0:02:02.9]} 33... Bg6 {[%clk 0:01:06.8]} 34. a6 {[%clk 0:01:58.6]}
34... Be8 {[%clk 0:01:05.3]} 35. Rb7+ {[%clk 0:01:55.2]} 35... Kd8 {[%clk
0:01:02]} 36. Qe7# {[%clk 0:01:53.7]} 1-0

[Event "Live Chess"]
[Site "Chess.com"]
[Date "2023.05.21"]
[Round "-"]
[White "vovanada"]
[Black "YrrriKharkiv"]
[Result "0-1"]
[WhiteElo "825"]
[BlackElo "2071"]
[TimeControl "300"]
[EndTime "2:55:25 PDT"]
[Termination "YrrriKharkiv won on time"]

1. d4 {[%clk 0:04:56.2]} 1... Nf6 {[%clk 0:04:58.3]} 2. Bf4 {[%clk 0:04:55.5]}
2... d6 {[%clk 0:04:57]} 3. e3 {[%clk 0:04:54]} 3... Nbd7 {[%clk 0:04:56.2]} 4.
Nf3 {[%clk 0:04:52.4]} 4... e5 {[%clk 0:04:55.7]} 5. Bg5 {[%clk 0:04:47.6]} 5...
Be7 {[%clk 0:04:51.2]} 6. c3 {[%clk 0:04:44.8]} 6... c6 {[%clk 0:04:49.4]} 7.
Nbd2 {[%clk 0:04:42.5]} 7... exd4 {[%clk 0:04:44.7]} 8. cxd4 {[%clk 0:04:39.5]}
8... O-O {[%clk 0:04:42]} 9. Bd3 {[%clk 0:04:32.3]} 9... h6 {[%clk 0:04:34.8]}
10. Bxf6 {[%clk 0:04:28.2]} 10... Nxf6 {[%clk 0:04:31.7]} 11. Ne4 {[%clk
0:04:27.6]} 11... Nxe4 {[%clk 0:04:30.2]} 12. Bxe4 {[%clk 0:04:27.5]} 12... d5
{[%clk 0:04:29.2]} 13. Bd3 {[%clk 0:04:23.8]} 13... Bb4+ {[%clk 0:04:28.2]} 14.
Nd2 {[%clk 0:04:20.1]} 14... Qa5 {[%clk 0:04:26]} 15. a3 {[%clk 0:04:12.4]}
15... Bd6 {[%clk 0:04:24.9]} 16. O-O {[%clk 0:04:09.4]} 16... Qc7 {[%clk
0:04:23.5]} 17. Nf3 {[%clk 0:04:01.7]} 17... Bg4 {[%clk 0:04:21.6]} 18. g3
{[%clk 0:03:51.1]} 18... Qe7 {[%clk 0:04:14.8]} 19. b4 {[%clk 0:03:34]} 19...
Rfe8 {[%clk 0:04:05.5]} 20. Be2 {[%clk 0:03:32.6]} 20... a5 {[%clk 0:04:01.5]}
21. b5 {[%clk 0:03:23.5]} 21... Bxf3 {[%clk 0:03:52.9]} 22. Bxf3 {[%clk
0:03:20.1]} 22... Bxa3 {[%clk 0:03:52.4]} 23. bxc6 {[%clk 0:03:08.5]} 23... bxc6
{[%clk 0:03:50.5]} 24. Qd2 {[%clk 0:02:41.9]} 24... Bb4 {[%clk 0:03:43.8]} 25.
Qc1 {[%clk 0:02:26.6]} 25... Rec8 {[%clk 0:03:38.7]} 26. Qc2 {[%clk 0:02:03]}
26... Rab8 {[%clk 0:03:35.3]} 27. Rfc1 {[%clk 0:01:47.3]} 27... Qd6 {[%clk
0:03:33.4]} 28. e4 {[%clk 0:01:22.3]} 28... dxe4 {[%clk 0:02:25.3]} 29. Qxe4
{[%clk 0:01:13.5]} 29... c5 {[%clk 0:02:20.2]} 30. dxc5 {[%clk 0:00:59.4]} 30...
Rxc5 {[%clk 0:02:16.8]} 31. Rxc5 {[%clk 0:00:55.2]} 31... Qxc5 {[%clk
0:02:14.3]} 32. Bd1 {[%clk 0:00:38.4]} 32... Qc3 {[%clk 0:01:53.1]} 33. Bc2
{[%clk 0:00:33.9]} 33... Qxa1+ {[%clk 0:01:47.8]} 34. Kg2 {[%clk 0:00:31]} 34...
g6 {[%clk 0:01:47.2]} 35. Qf4 {[%clk 0:00:15]} 35... Rd8 {[%clk 0:01:37.9]} 0-1

[Event "Live Chess"]
[Site "Chess.com"]
[Date "2023.05.21"]
[Round "-"]
[White "KeithArkell"]
[Black "BJAW87"]
[Result "1-0"]
[WhiteElo "2511"]
[BlackElo "1434"]
[TimeControl "300"]
[EndTime "2:55:31 PDT"]
[Termination "KeithArkell won by resignation"]

1. d4 {[%clk 0:04:57]} 1... Nf6 {[%clk 0:04:58.9]} 2. Nf3 {[%clk 0:04:55.4]}
2... g6 {[%clk 0:04:51.9]} 3. c4 {[%clk 0:04:53.7]} 3... Bg7 {[%clk 0:04:49.7]}
4. Nc3 {[%clk 0:04:45.6]} 4... O-O {[%clk 0:04:47.9]} 5. g3 {[%clk 0:04:44.3]}
5... d6 {[%clk 0:04:44.4]} 6. Bg2 {[%clk 0:04:43.6]} 6... Nbd7 {[%clk
0:04:38.7]} 7. d5 {[%clk 0:04:42.1]} 7... Nc5 {[%clk 0:04:30.4]} 8. O-O {[%clk
0:04:38.1]} 8... Bg4 {[%clk 0:04:27.3]} 9. h3 {[%clk 0:04:35.7]} 9... Bxf3
{[%clk 0:04:19.8]} 10. exf3 {[%clk 0:04:34.6]} 10... Qd7 {[%clk 0:04:09.7]} 11.
f4 {[%clk 0:04:33.3]} 11... a6 {[%clk 0:03:40]} 12. Be3 {[%clk 0:04:30.1]} 12...
b6 {[%clk 0:03:26.9]} 13. Re1 {[%clk 0:04:25.8]} 13... Rfe8 {[%clk 0:03:14.7]}
14. Bd4 {[%clk 0:04:23.5]} 14... a5 {[%clk 0:02:57.4]} 15. b3 {[%clk 0:04:21.8]}
15... a4 {[%clk 0:02:51.5]} 16. Rb1 {[%clk 0:04:20.1]} 16... axb3 {[%clk
0:02:37.6]} 17. axb3 {[%clk 0:04:20]} 17... Ra2 {[%clk 0:02:34.7]} 18. Nxa2
{[%clk 0:04:17.5]} 18... Ra8 {[%clk 0:02:24.6]} 19. Nc3 {[%clk 0:04:16.2]} 19...
Ra3 {[%clk 0:02:20.8]} 20. b4 {[%clk 0:04:13.7]} 20... Na6 {[%clk 0:02:15.5]}
21. Rb3 {[%clk 0:04:12.8]} 21... Rxb3 {[%clk 0:02:07.8]} 22. Qxb3 {[%clk
0:04:12.7]} 22... c5 {[%clk 0:01:59.1]} 23. dxc6 {[%clk 0:04:09.8]} 23... Qc7
{[%clk 0:01:57.7]} 24. Nb5 {[%clk 0:04:06.1]} 1-0

[Event "Live Chess"]
[Site "Chess.com"]
[Date "2023.05.21"]
[Round "-"]
[White "Greenbecker"]
[Black "wot-not"]
[Result "1-0"]
[WhiteElo "1651"]
[BlackElo "1541"]
[TimeControl "300"]
[EndTime "2:55:37 PDT"]
[Termination "Greenbecker won by resignation"]

1. e4 {[%clk 0:04:58.2]} 1... e6 {[%clk 0:04:58.2]} 2. d4 {[%clk 0:04:56.4]}
2... d5 {[%clk 0:04:57.9]} 3. exd5 {[%clk 0:04:55.2]} 3... exd5 {[%clk
0:04:56.9]} 4. Bd3 {[%clk 0:04:54.7]} 4... Nf6 {[%clk 0:04:56.1]} 5. Nf3 {[%clk
0:04:54.2]} 5... c5 {[%clk 0:04:54.5]} 6. c3 {[%clk 0:04:51.1]} 6... c4 {[%clk
0:04:53.2]} 7. Bc2 {[%clk 0:04:49.9]} 7... Bd6 {[%clk 0:04:52.1]} 8. O-O {[%clk
0:04:48.6]} 8... O-O {[%clk 0:04:51.3]} 9. Re1 {[%clk 0:04:47.8]} 9... Qc7
{[%clk 0:04:48.3]} 10. h3 {[%clk 0:04:44.5]} 10... Nbd7 {[%clk 0:04:44.8]} 11.
Bg5 {[%clk 0:04:43.3]} 11... h6 {[%clk 0:04:33.9]} 12. Bxf6 {[%clk 0:04:39.9]}
12... Nxf6 {[%clk 0:04:32.3]} 13. Nbd2 {[%clk 0:04:39.5]} 13... Bd7 {[%clk
0:04:29.2]} 14. Ne5 {[%clk 0:04:36]} 14... Rae8 {[%clk 0:04:26.1]} 15. Nxd7
{[%clk 0:04:32.8]} 15... Qxd7 {[%clk 0:04:23.8]} 16. Qf3 {[%clk 0:04:28.8]}
16... Bc7 {[%clk 0:04:11.1]} 17. Bf5 {[%clk 0:04:20.7]} 17... Qd6 {[%clk
0:04:09.4]} 18. g3 {[%clk 0:04:11.7]} 18... Rxe1+ {[%clk 0:03:51.2]} 19. Rxe1
{[%clk 0:04:09.9]} 19... Re8 {[%clk 0:03:50.8]} 20. Rxe8+ {[%clk 0:04:06]} 20...
Nxe8 {[%clk 0:03:49.7]} 21. Bc2 {[%clk 0:04:03.8]} 21... Nf6 {[%clk 0:03:47.2]}
22. Qf5 {[%clk 0:04:00.3]} 22... b5 {[%clk 0:03:24.3]} 23. Nf3 {[%clk
0:03:53.9]} 23... g6 {[%clk 0:03:16.4]} 24. Qc8+ {[%clk 0:03:50.4]} 24... Kg7
{[%clk 0:03:15]} 25. Ne5 {[%clk 0:03:43.2]} 25... Ne4 {[%clk 0:03:11.7]} 26.
Bxe4 {[%clk 0:03:24.9]} 26... dxe4 {[%clk 0:03:10.3]} 27. Qb7 {[%clk 0:03:20.8]}
27... a6 {[%clk 0:03:03.7]} 28. Qxe4 {[%clk 0:03:17]} 28... f5 {[%clk
0:02:52.8]} 29. Qc6 {[%clk 0:03:11.1]} 29... Qxc6 {[%clk 0:02:42.5]} 30. Nxc6
{[%clk 0:03:10.1]} 30... Kf6 {[%clk 0:02:39.3]} 31. Nb4 {[%clk 0:03:07.8]} 31...
a5 {[%clk 0:02:37.2]} 32. Nd5+ {[%clk 0:03:07]} 1-0

[Event "Live Chess"]
[Site "Chess.com"]
[Date "2023.05.21"]
[Round "-"]
[White "omisoc"]
[Black "smoggyrabbit"]
[Result "1-0"]
[WhiteElo "2167"]
[BlackElo "1706"]
[TimeControl "300"]
[EndTime "2:55:52 PDT"]
[Termination "omisoc won on time"]

1. Nf3 {[%clk 0:04:55.8]} 1... e6 {[%clk 0:04:54.8]} 2. g3 {[%clk 0:04:51.3]}
2... f5 {[%clk 0:04:51.4]} 3. Bg2 {[%clk 0:04:50.5]} 3... Nf6 {[%clk 0:04:49.9]}
4. O-O {[%clk 0:04:49.6]} 4... d5 {[%clk 0:04:43]} 5. d4 {[%clk 0:04:45.8]} 5...
c6 {[%clk 0:04:41.9]} 6. c4 {[%clk 0:04:43.3]} 6... Bd6 {[%clk 0:04:37.7]} 7.
Qc2 {[%clk 0:04:41.4]} 7... O-O {[%clk 0:04:34.5]} 8. b3 {[%clk 0:04:39.9]} 8...
Qe7 {[%clk 0:04:31.6]} 9. a4 {[%clk 0:04:38.3]} 9... b6 {[%clk 0:04:00]} 10. Ba3
{[%clk 0:04:35.6]} 10... Bxa3 {[%clk 0:03:56.6]} 11. Nxa3 {[%clk 0:04:33]} 11...
Bb7 {[%clk 0:03:54.2]} 12. Qb2 {[%clk 0:04:15.5]} 12... Na6 {[%clk 0:03:48.9]}
13. Nc2 {[%clk 0:04:11.3]} 13... Nb4 {[%clk 0:03:41.3]} 14. Nxb4 {[%clk
0:03:59.7]} 14... Qxb4 {[%clk 0:03:41.2]} 15. Ne5 {[%clk 0:03:58.4]} 15... Qd6
{[%clk 0:03:26.9]} 16. Rac1 {[%clk 0:03:48.3]} 16... c5 {[%clk 0:03:06.1]} 17.
dxc5 {[%clk 0:03:28]} 17... bxc5 {[%clk 0:03:02.7]} 18. Rfd1 {[%clk 0:03:27.3]}
18... Rab8 {[%clk 0:02:54.9]} 19. Nd3 {[%clk 0:03:16.8]} 19... dxc4 {[%clk
0:02:46.7]} 20. Ne5 {[%clk 0:03:04]} 20... Qc7 {[%clk 0:02:26.1]} 21. Rxc4
{[%clk 0:03:00.8]} 21... Bxg2 {[%clk 0:02:19.9]} 22. Kxg2 {[%clk 0:03:00.7]}
22... Rfd8 {[%clk 0:01:51.3]} 23. Rxd8+ {[%clk 0:02:46.9]} 23... Rxd8 {[%clk
0:01:50.2]} 24. Nd3 {[%clk 0:02:38.8]} 24... Nd7 {[%clk 0:01:09.3]} 25. Qc3
{[%clk 0:02:05]} 25... Rb8 {[%clk 0:00:43]} 26. Nxc5 {[%clk 0:01:54.7]} 26...
Nxc5 {[%clk 0:00:39.1]} 27. Rxc5 {[%clk 0:01:53.6]} 27... Qb7+ {[%clk
0:00:37.1]} 28. Kg1 {[%clk 0:01:37]} 28... Qxb3 {[%clk 0:00:35.9]} 29. Qxb3
{[%clk 0:01:36.2]} 29... Rxb3 {[%clk 0:00:34.8]} 30. Rc7 {[%clk 0:01:34.9]}
30... a5 {[%clk 0:00:31]} 31. Rc5 {[%clk 0:01:32.7]} 31... Rb2 {[%clk
0:00:25.7]} 32. Kf1 {[%clk 0:01:26.4]} 32... Rb1+ {[%clk 0:00:22.2]} 33. Kg2
{[%clk 0:01:25.2]} 33... Rb2 {[%clk 0:00:19.6]} 34. Kf3 {[%clk 0:01:21.9]} 34...
Rb3+ {[%clk 0:00:18.3]} 35. e3 {[%clk 0:01:20.8]} 35... g5 {[%clk 0:00:13.9]}
36. g4 {[%clk 0:01:19.4]} 36... fxg4+ {[%clk 0:00:11.9]} 37. Kg3 {[%clk
0:01:17.8]} 37... h6 {[%clk 0:00:10.4]} 38. Rxa5 {[%clk 0:01:16.1]} 38... Rb1
{[%clk 0:00:08.4]} 39. Kg2 {[%clk 0:01:13.9]} 39... Re1 {[%clk 0:00:06]} 40. Ra7
{[%clk 0:01:08.9]} 40... Ra1 {[%clk 0:00:05]} 41. a5 {[%clk 0:01:07.3]} 41...
Kf8 {[%clk 0:00:04.2]} 42. a6 {[%clk 0:01:05.4]} 42... Ke8 {[%clk 0:00:03.1]}
43. Ra8+ {[%clk 0:01:04.5]} 43... Kd7 {[%clk 0:00:02.2]} 44. a7 {[%clk
0:01:03.3]} 1-0

[Event "Live Chess"]
[Site "Chess.com"]
[Date "2023.05.21"]
[Round "-"]
[White "SupremeTactician"]
[Black "lateforthesky"]
[Result "0-1"]
[WhiteElo "2243"]
[BlackElo "2133"]
[TimeControl "300"]
[EndTime "2:56:16 PDT"]
[Termination "lateforthesky won by resignation"]

1. e4 {[%clk 0:04:57.6]} 1... c5 {[%clk 0:04:58.4]} 2. Nf3 {[%clk 0:04:56.9]}
2... Nf6 {[%clk 0:04:56.8]} 3. e5 {[%clk 0:04:53.8]} 3... Nd5 {[%clk 0:04:55.8]}
4. c4 {[%clk 0:04:53.5]} 4... Nc7 {[%clk 0:04:54.3]} 5. d4 {[%clk 0:04:53.4]}
5... cxd4 {[%clk 0:04:53]} 6. Nxd4 {[%clk 0:04:53.3]} 6... g6 {[%clk 0:04:51.2]}
7. Nc3 {[%clk 0:04:52.3]} 7... Bg7 {[%clk 0:04:50.3]} 8. f4 {[%clk 0:04:52]}
8... O-O {[%clk 0:04:49.1]} 9. Be3 {[%clk 0:04:51.3]} 9... Nc6 {[%clk
0:04:43.7]} 10. Nxc6 {[%clk 0:04:50.2]} 10... dxc6 {[%clk 0:04:42.5]} 11. Be2
{[%clk 0:04:50.1]} 11... Qxd1+ {[%clk 0:04:14.1]} 12. Rxd1 {[%clk 0:04:50]}
12... h5 {[%clk 0:04:10.7]} 13. O-O {[%clk 0:04:45.5]} 13... Bf5 {[%clk
0:04:07.1]} 14. Bc5 {[%clk 0:04:42]} 14... Rfe8 {[%clk 0:04:00.8]} 15. Bd3
{[%clk 0:04:39.7]} 15... Bxd3 {[%clk 0:03:53.7]} 16. Rxd3 {[%clk 0:04:39.6]}
16... b6 {[%clk 0:03:51.9]} 17. Bf2 {[%clk 0:04:37.2]} 17... Red8 {[%clk
0:03:33.2]} 18. Rfd1 {[%clk 0:04:36.1]} 18... Ne6 {[%clk 0:03:31.6]} 19. g3
{[%clk 0:04:34.4]} 19... Rxd3 {[%clk 0:03:28.4]} 20. Rxd3 {[%clk 0:04:33.1]}
20... Rd8 {[%clk 0:03:27.3]} 21. Rxd8+ {[%clk 0:04:32.3]} 21... Nxd8 {[%clk
0:03:25.8]} 22. Kg2 {[%clk 0:04:32.2]} 22... f6 {[%clk 0:03:21.3]} 23. exf6
{[%clk 0:04:23.5]} 23... Bxf6 {[%clk 0:03:14.9]} 24. Nd1 {[%clk 0:04:19.1]}
24... e5 {[%clk 0:03:12.4]} 25. fxe5 {[%clk 0:04:17.6]} 25... Bxe5 {[%clk
0:03:10.7]} 26. b3 {[%clk 0:04:17.5]} 26... Ne6 {[%clk 0:03:07.5]} 27. Kf3
{[%clk 0:04:16.1]} 27... Kf7 {[%clk 0:03:06.2]} 28. Ke4 {[%clk 0:04:14.8]} 28...
Bf6 {[%clk 0:03:02.7]} 29. Be3 {[%clk 0:04:13.8]} 29... Ke7 {[%clk 0:02:56.4]}
30. Nf2 {[%clk 0:04:12]} 30... Kd6 {[%clk 0:02:46.1]} 31. Nd3 {[%clk 0:04:09.8]}
31... h4 {[%clk 0:02:09.3]} 32. gxh4 {[%clk 0:04:02.9]} 32... Bxh4 {[%clk
0:02:06.1]} 33. Nf4 {[%clk 0:04:02.1]} 33... Nxf4 {[%clk 0:02:00.8]} 34. Bxf4+
{[%clk 0:04:02]} 34... Kc5 {[%clk 0:01:53.9]} 35. Bb8 {[%clk 0:04:01.9]} 35...
a5 {[%clk 0:01:51.5]} 36. a3 {[%clk 0:03:51.4]} 36... a4 {[%clk 0:01:49]} 37.
bxa4 {[%clk 0:03:42.1]} 37... Kxc4 {[%clk 0:01:47]} 38. Bc7 {[%clk 0:03:37.2]}
38... Bf2 {[%clk 0:01:44.5]} 39. a5 {[%clk 0:03:34.5]} 39... bxa5 {[%clk
0:01:40.8]} 40. Bxa5 {[%clk 0:03:33.7]} 40... Kb3 {[%clk 0:01:39.8]} 41. Bb4
{[%clk 0:03:16.5]} 41... c5 {[%clk 0:01:38.4]} 42. Bxc5 {[%clk 0:03:16]} 42...
Bxc5 {[%clk 0:01:36.6]} 43. h4 {[%clk 0:03:15.9]} 43... Bf8 {[%clk 0:01:25.2]}
44. h5 {[%clk 0:03:14.4]} 44... g5 {[%clk 0:01:21.4]} 45. Kf5 {[%clk 0:03:12.3]}
45... Bh6 {[%clk 0:01:19.5]} 46. Kg6 {[%clk 0:03:05]} 46... g4 {[%clk
0:01:18.7]} 47. Kxh6 {[%clk 0:03:04.8]} 47... g3 {[%clk 0:01:17.8]} 48. Kg7
{[%clk 0:03:04.7]} 48... g2 {[%clk 0:01:16.6]} 49. h6 {[%clk 0:03:04.6]} 49...
g1=Q+ {[%clk 0:01:15.7]} 50. Kf7 {[%clk 0:03:04.5]} 50... Qf2+ {[%clk
0:01:10.3]} 51. Kg8 {[%clk 0:03:03.5]} 51... Qg3+ {[%clk 0:01:08.9]} 52. Kf7
{[%clk 0:03:01.2]} 52... Qf4+ {[%clk 0:01:07.5]} 53. Kg7 {[%clk 0:03:00.7]}
53... Qg5+ {[%clk 0:01:06.5]} 54. Kh7 {[%clk 0:03:00.2]} 54... Kxa3 {[%clk
0:01:00.1]} 0-1

[Event "Live Chess"]
[Site "Chess.com"]
[Date "2023.05.21"]
[Round "-"]
[White "domrobson"]
[Black "TKDRyan"]
[Result "1-0"]
[WhiteElo "1697"]
[BlackElo "1131"]
[TimeControl "300"]
[EndTime "2:56:18 PDT"]
[Termination "domrobson won by resignation"]

1. d4 {[%clk 0:04:57.5]} 1... d5 {[%clk 0:04:58.5]} 2. c4 {[%clk 0:04:56.8]}
2... Nf6 {[%clk 0:04:56.5]} 3. Nf3 {[%clk 0:04:54.8]} 3... Bf5 {[%clk
0:04:55.5]} 4. Nc3 {[%clk 0:04:53.4]} 4... e6 {[%clk 0:04:54.4]} 5. Qb3 {[%clk
0:04:53]} 5... b6 {[%clk 0:04:48.6]} 6. e3 {[%clk 0:04:47.6]} 6... a6 {[%clk
0:04:35.8]} 7. cxd5 {[%clk 0:04:46.2]} 7... Nxd5 {[%clk 0:04:32.5]} 8. e4 {[%clk
0:04:40]} 8... Nxc3 {[%clk 0:04:26.3]} 9. exf5 {[%clk 0:04:39.1]} 9... Nb5
{[%clk 0:03:57.1]} 10. fxe6 {[%clk 0:04:36.1]} 10... fxe6 {[%clk 0:03:41]} 11.
Bg5 {[%clk 0:04:20.9]} 11... Qd6 {[%clk 0:03:26.4]} 12. Bxb5+ {[%clk 0:04:14.7]}
12... axb5 {[%clk 0:03:24.5]} 13. Qxb5+ {[%clk 0:04:13.9]} 13... c6 {[%clk
0:03:15.7]} 14. Qxb6 {[%clk 0:04:08.9]} 14... Be7 {[%clk 0:03:07.5]} 15. Bxe7
{[%clk 0:04:05.1]} 15... Qxe7 {[%clk 0:02:58.2]} 16. O-O {[%clk 0:04:03.1]}
16... O-O {[%clk 0:02:56.9]} 17. Ne5 {[%clk 0:04:00.7]} 17... Qd6 {[%clk
0:02:43.9]} 18. Qc5 {[%clk 0:03:50.7]} 18... Qxc5 {[%clk 0:02:37.8]} 19. dxc5
{[%clk 0:03:50.6]} 19... Ra5 {[%clk 0:02:35]} 20. b4 {[%clk 0:03:48.3]} 20...
Ra3 {[%clk 0:02:33.4]} 21. Rfe1 {[%clk 0:03:44.3]} 21... Na6 {[%clk 0:02:29.2]}
22. Nxc6 {[%clk 0:03:42.1]} 22... Re8 {[%clk 0:02:14.5]} 23. Re2 {[%clk
0:03:36.6]} 23... Nc7 {[%clk 0:02:06.4]} 24. Rae1 {[%clk 0:03:31.9]} 24... h6
{[%clk 0:01:56.2]} 25. Nd4 {[%clk 0:03:29.3]} 25... e5 {[%clk 0:01:51]} 26. Nc6
{[%clk 0:03:27.6]} 26... Nb5 {[%clk 0:01:35.3]} 27. Nxe5 {[%clk 0:03:22]} 27...
Nc3 {[%clk 0:01:30.8]} 28. Re3 {[%clk 0:03:15.3]} 28... Nb5 {[%clk 0:01:08]} 29.
Nc4 {[%clk 0:03:08]} 29... Rxa2 {[%clk 0:01:04.1]} 30. Rxe8+ {[%clk 0:03:06.3]}
30... Kf7 {[%clk 0:01:02.5]} 31. R8e7+ {[%clk 0:03:03.9]} 31... Kg6 {[%clk
0:00:59.9]} 32. R7e6+ {[%clk 0:03:02.1]} 32... Kh7 {[%clk 0:00:58.6]} 33. Nd6
{[%clk 0:03:00.9]} 33... Nd4 {[%clk 0:00:53.3]} 34. R6e4 {[%clk 0:02:54.2]}
34... Rd2 {[%clk 0:00:31.8]} 35. Nc4 {[%clk 0:02:48.5]} 35... Rd3 {[%clk
0:00:29.6]} 36. Rxd4 {[%clk 0:02:39.1]} 36... Rxd4 {[%clk 0:00:27.8]} 37. Rc1
{[%clk 0:02:38.8]} 37... g5 {[%clk 0:00:25.1]} 38. c6 {[%clk 0:02:37.8]} 38...
Rd8 {[%clk 0:00:21]} 39. c7 {[%clk 0:02:36.7]} 39... Rc8 {[%clk 0:00:20.2]} 40.
Nd6 {[%clk 0:02:36.2]} 40... Ra8 {[%clk 0:00:14.9]} 41. c8=Q {[%clk 0:02:34.9]}
41... Rxc8 {[%clk 0:00:13.3]} 42. Rxc8 {[%clk 0:02:33]} 1-0

[Event "Live Chess"]
[Site "Chess.com"]
[Date "2023.05.21"]
[Round "-"]
[White "nigelst"]
[Black "yeetpizza74"]
[Result "1-0"]
[WhiteElo "1709"]
[BlackElo "495"]
[TimeControl "300"]
[EndTime "2:56:33 PDT"]
[Termination "nigelst won by checkmate"]

1. e4 {[%clk 0:04:57.8]} 1... c6 {[%clk 0:04:58.8]} 2. d4 {[%clk 0:04:56.1]}
2... d5 {[%clk 0:04:57.1]} 3. exd5 {[%clk 0:04:55.1]} 3... cxd5 {[%clk
0:04:55.5]} 4. Bd3 {[%clk 0:04:54.7]} 4... Nc6 {[%clk 0:04:52.7]} 5. c3 {[%clk
0:04:53.7]} 5... Nf6 {[%clk 0:04:50.9]} 6. Bf4 {[%clk 0:04:52.9]} 6... e6 {[%clk
0:04:38.9]} 7. Nf3 {[%clk 0:04:49.6]} 7... Bd6 {[%clk 0:04:37.7]} 8. Bxd6 {[%clk
0:04:48.2]} 8... Qxd6 {[%clk 0:04:36.3]} 9. O-O {[%clk 0:04:47.7]} 9... O-O
{[%clk 0:04:32.2]} 10. Nbd2 {[%clk 0:04:46.6]} 10... Ng4 {[%clk 0:04:20.5]} 11.
h3 {[%clk 0:04:40.2]} 11... Nh6 {[%clk 0:04:09]} 12. Re1 {[%clk 0:04:36.3]}
12... Re8 {[%clk 0:04:07.3]} 13. Ne5 {[%clk 0:04:35.1]} 13... f6 {[%clk
0:03:59.1]} 14. Qh5 {[%clk 0:04:07]} 14... g6 {[%clk 0:03:43.7]} 15. Nxg6 {[%clk
0:04:05]} 15... hxg6 {[%clk 0:03:42.1]} 16. Qxg6+ {[%clk 0:04:03.9]} 16... Kf8
{[%clk 0:03:39.7]} 17. Qxh6+ {[%clk 0:03:57.6]} 17... Kg8 {[%clk 0:03:35.9]} 18.
Qh7+ {[%clk 0:03:41]} 18... Kf8 {[%clk 0:03:34]} 19. Bg6 {[%clk 0:03:31.8]}
19... Re7 {[%clk 0:03:31.1]} 20. Qh8# {[%clk 0:03:30.1]} 1-0